fUSD/lending_fUSD_20240614
["ID","MTS","AMOUNT","RATE_DAILY","PERIOD"]
[329511703,1718409169521,-2174.79,0.00025479,3]
[329511704,1718409169534,-500.0,0.00025479,3]
[329511705,1718409169554,-568.33768787,0.00025479,3]
[329511706,1718409169565,-3237.71,0.00025479,3]
[329511707,1718409169587,-817.48,0.00025479,3]
[329511708,1718409169607,-2378.83,0.00025479,3]
[329511709,1718409169619,-692.48,0.00025479,3]
[329511710,1718409169635,-1135.87,0.00025479,3]
[329511711,1718409169650,-876.0,0.000255,13]
[329511712,1718409169680,-230.41188732,0.00025504,2]
[329511713,1718409169692,-158.27876525,0.00025504,2]
[329511714,1718409169705,-586.37063159,0.00025515,2]
[329511715,1718409169716,-177.90534913,0.00025529,2]
[329511716,1718409169728,-186.71212,0.00025533,2]
[329511717,1718409169745,-158.890655,0.00025533,2]
[329511718,1718409169762,-158.943114,0.00025533,2]
[329511719,1718409169775,-180.999396,0.00025533,2]
[329511720,1718409169804,-736.814141,0.00025533,2]
[329511721,1718409169841,-485.376602,0.00025533,2]
[329511722,1718409169853,-496.646376,0.00025533,2]
[329511723,1718409169880,-1395.835234,0.00025533,2]
[329511724,1718409169908,-2008.001876,0.00025533,2]
[329511725,1718409169919,-5234.382128,0.00025533,2]
[329511726,1718409169963,-2768.624467,0.00025533,2]
[329511727,1718409169990,-164.441197,0.00025533,2]
[329511728,1718409170003,-5015.913168,0.00025533,2]
[329511729,1718409170047,-4918.870319,0.00025533,2]
[329511730,1718409170116,-247.35273,0.00025533,2]
[329511731,1718409170156,-285.59063,0.0002554,2]
[329511732,1718409170213,-457.50732763,0.00025543,2]
[329511733,1718409170264,-457.50732763,0.00025557,2]
[329511734,1718409170287,-230.41188732,0.00025558,2]
[329511735,1718409170371,-155.85640551,0.00025568,2]
[329511736,1718409170404,-4928.91154559,0.00025584,2]
[329511737,1718409170420,-166.66666666,0.0002559,2]
[329511738,1718409170434,-150.0,0.00025593,2]
[329511739,1718409170446,-160.92444028,0.00025596,2]
[329511740,1718409170456,-12338.52293741,0.00025601,2]
[329511741,1718409170480,-4928.91154559,0.00025653,2]
[329511742,1718409170491,-586.37063159,0.00025656,2]
[329511743,1718409170512,-159.01700298,0.00025695,2]
[329511744,1718409170537,-153.48233137,0.000257,2]
[329511745,1718409170549,-150.0,0.000257,4]
[329511746,1718409170571,-166.66666666,0.00025705,2]
[329511747,1718409170583,-150.0,0.00025714,2]
[329511748,1718409170596,-230.41188732,0.00025738,2]
[329511749,1718409170621,-1343.6421961,0.00025742,15]
[329511750,1718409170632,-236.1529829,0.00025753,2]
[329511751,1718409170642,-500.0,0.00025753,3]
[329511752,1718409170665,-749.79,0.00025753,3]
[329511753,1718409170741,-500.0,0.00025753,3]
[329511754,1718409170768,-500.0,0.00025753,3]
[329511755,1718409170780,-500.0,0.00025753,3]
[329511756,1718409170817,-600.48,0.00025753,3]
[329511757,1718409170827,-2000.0,0.00025753,3]
[329511758,1718409170878,-500.0,0.00025753,3]
[329511759,1718409170890,-500.0,0.00025753,3]
[329511760,1718409170903,-1018.08,0.00025753,3]
[329511761,1718409170928,-500.0,0.00025753,3]
[329511762,1718409170938,-500.0,0.00025753,3]
[329511763,1718409170950,-1175.7,0.00025753,3]
[329511764,1718409170965,-500.0,0.00025753,3]
[329511765,1718409170994,-1691.46,0.00025753,3]
[329511766,1718409171020,-24506.13,0.00025753,3]
[329511767,1718409171033,-777.76,0.00025753,3]
[329511768,1718409171052,-1854.16,0.00025753,3]
[329511769,1718409171068,-1055.98,0.00025753,3]
[329511770,1718409171093,-1198.09,0.00025753,3]
[329511771,1718409171109,-500.0,0.00025753,3]
[329511772,1718409171123,-516.41,0.00025753,3]
[329511773,1718409171138,-615.26,0.00025753,3]
[329511774,1718409171163,-6231.18,0.00025753,3]
[329511775,1718409171180,-1046.77,0.00025753,3]
[329511776,1718409171198,-3586.27,0.00025753,3]
[329511777,1718409171208,-561.85,0.00025753,3]
[329511778,1718409171360,-968.93,0.00025753,3]
[329511779,1718409171392,-1857.88,0.00025753,3]
[329511780,1718409171424,-2183.55,0.00025753,3]
[329511781,1718409171435,-844.51,0.00025753,3]
[329511782,1718409171447,-836.87,0.00025753,3]
[329511783,1718409171458,-500.0,0.00025753,3]
[329511784,1718409171481,-1991.89,0.00025753,3]
[329511785,1718409171508,-367.80232184,0.00025753,3]
[329511786,1718409171522,-5690.91,0.00025753,3]
[329511787,1718409171536,-969.41,0.00025753,3]
[329511788,1718409171560,-500.0,0.00025753,3]
[329511789,1718409171584,-18610.37,0.00025753,3]
[329511790,1718409171624,-20167.93,0.00025753,3]
[329511791,1718409171636,-1674.49,0.00025753,3]
[329511792,1718409171648,-3030.53,0.00025753,3]
[329511793,1718409171672,-500.0,0.00025753,3]
[329511794,1718409171693,-966.56,0.00025753,3]
[329511795,1718409171707,-775.23,0.00025753,3]
[329511796,1718409171723,-575.07,0.00025753,3]
[329511797,1718409171738,-598.46,0.00025753,3]
[329511798,1718409171752,-1655.24,0.00025753,3]
[329511799,1718409171762,-2076.84,0.00025753,3]
[329511800,1718409171784,-682.08,0.00025753,3]
[329511801,1718409171803,-1822.84,0.00025753,3]
[329511802,1718409171826,-5529.61,0.00025753,3]
[329511803,1718409171837,-786.01,0.00025753,3]
[329511804,1718409171856,-3184.07,0.00025753,3]
[329511805,1718409171870,-574.58,0.00025753,3]
[329511806,1718409171912,-11746.88,0.00025753,3]
[329511807,1718409171959,-662.27,0.00025753,3]
[329511808,1718409171981,-6064.15,0.00025753,3]
[329511809,1718409172012,-1212.45,0.00025753,3]
[329511810,1718409172026,-658.84,0.00025753,3]
[329511811,1718409172068,-500.0,0.00025753,3]
[329511812,1718409172081,-1250.84,0.00025753,3]
[329511813,1718409172112,-1457.35,0.00025753,3]
[329511814,1718409172134,-2523.73,0.00025753,3]
[329511815,1718409172172,-521.47,0.00025753,3]
[329511816,1718409172201,-699.17,0.00025753,3]
[329511817,1718409172215,-500.0,0.00025753,3]
[329511818,1718409172225,-896.88,0.00025753,3]
[329511819,1718409172236,-1061.25,0.00025753,3]
[329511820,1718409172248,-500.0,0.00025753,3]
[329511821,1718409172283,-669.5,0.00025753,3]
[329511822,1718409172301,-532.32,0.00025753,3]
[329511823,1718409172325,-2252.2,0.00025753,3]
[329511824,1718409172355,-1329.78,0.00025753,3]
[329511825,1718409172378,-889.55,0.00025753,3]
[329511826,1718409172390,-726.83,0.00025753,3]
[329511827,1718409172400,-500.0,0.00025753,3]
[329511828,1718409172424,-1121.95,0.00025753,3]
[329511829,1718409172443,-500.0,0.00025753,3]
[329511830,1718409172455,-2002.63,0.00025753,3]
[329511831,1718409172487,-635.93,0.00025753,3]
[329511832,1718409172499,-500.0,0.00025753,3]
[329511833,1718409172513,-749.23,0.00025753,3]
[329511834,1718409172551,-1297.0,0.00025753,3]
[329511835,1718409172564,-1013.7,0.00025753,3]
[329511836,1718409172613,-1218.43,0.00025753,3]
[329511837,1718409172626,-814.13,0.00025753,3]
[329511838,1718409172638,-1069.53,0.00025753,3]
[329511839,1718409172651,-2089.69,0.00025753,3]
[329511840,1718409172663,-500.0,0.00025753,3]
[329511841,1718409172677,-728.21,0.00025753,3]
[329511842,1718409172687,-4506.65,0.00025753,3]
[329511843,1718409172716,-505.75,0.00025753,3]
[329511844,1718409172748,-500.0,0.00025753,3]
[329511845,1718409172771,-1722.19,0.00025753,3]
[329511846,1718409172783,-1029.14,0.00025753,3]
[329511847,1718409172812,-1126.29,0.00025753,3]
[329511848,1718409172828,-1013.4,0.00025753,3]
[329511849,1718409172838,-690.09,0.00025753,3]
[329511850,1718409172857,-500.0,0.00025753,3]
[329511851,1718409172881,-2735.56,0.00025753,3]
[329511852,1718409172903,-725.51,0.00025753,3]
[329511853,1718409172929,-2174.79,0.00025753,3]
[329511854,1718409173021,-500.0,0.00025753,3]
[329511855,1718409173031,-3237.71,0.00025753,3]
[329511856,1718409173058,-817.48,0.00025753,3]
[329511857,1718409173112,-2378.83,0.00025753,3]
[329511858,1718409173132,-692.48,0.00025753,3]
[329511859,1718409173146,-1135.87,0.00025753,3]
[329511860,1718409173158,-230.41188732,0.00025762,2]
[329511861,1718409173183,-159.01700298,0.00025764,2]
[329511862,1718409173212,-4928.91154559,0.00025764,2]
[329511863,1718409173234,-577.87975608,0.00025767,2]
[329511864,1718409173296,-346.68116762,0.00025778,2]
[329511865,1718409173327,-346.68116762,0.00025792,2]
[329511866,1718409173340,-150.0,0.00025798,2]
[329511867,1718409173351,-153.04376479,0.00025801,2]
[329511868,1718409173363,-4928.91154559,0.00025807,2]
[329511869,1718409173380,-150.0,0.00025808,2]
[329511870,1718409173391,-577.87975608,0.00025816,2]
[329511871,1718409173410,-2340.74889455,0.00025817,2]
[329511872,1718409173430,-4928.91154559,0.00025817,2]
[329511873,1718409173452,-154.43145431,0.00025845,2]
[329511874,1718409173465,-230.41188732,0.00025857,2]
[329511875,1718409173484,-203.67017798,0.00025869,2]
[329511876,1718409173496,-155.85640551,0.00025871,2]
[329511877,1718409173508,-203.67017798,0.00025879,2]
[329511878,1718409173520,-457.50732763,0.00025881,2]
[329511879,1718409173532,-2340.74889455,0.00025887,2]
[329511880,1718409173552,-160.12931359,0.00025889,2]
[329511881,1718409173564,-251.32,0.0002589,2]
[329511882,1718409173576,-154.60031802,0.00025906,2]
[329511883,1718409173604,-203.67017798,0.00025906,2]
[329511884,1718409173615,-155.85640551,0.00025918,2]
[329511885,1718409173664,-153.48233137,0.00025922,2]
[329511886,1718409173689,-318.4,0.00025925,2]
[329511887,1718409173720,-155.85640551,0.00025932,2]
[329511888,1718409173741,-151.0,0.00025944,7]
[329511889,1718409173757,-153.04376479,0.00025954,2]
[329511890,1718409173781,-175.55319433,0.0002596,2]
[329511891,1718409173804,-586.37063159,0.0002597,2]
[329511892,1718409173822,-24527.8660751,0.00026,5]
[329511893,1718409173854,-277.78151197,0.00026,2]
[329511894,1718409173873,-23444.85467657,0.00026,7]
[329511895,1718409173886,-738.0,0.00026,2]
[329511896,1718409173914,-1809.49,0.00026,2]
[329511897,1718409173927,-250.0,0.00026,2]
[329511898,1718409173939,-1107.0,0.00026,2]
[329511899,1718409173962,-2000.0,0.00026,2]
[329511900,1718409173996,-876.0,0.00026,14]
[329511901,1718409174046,-150.0,0.00026,4]
[329511902,1718409174066,-160.12931359,0.00026009,2]
[329511903,1718409174108,-997.96,0.0002601,2]
[329511904,1718409174177,-500.0,0.00026027,3]
[329511905,1718409174221,-749.79,0.00026027,3]
[329511906,1718409174233,-500.0,0.00026027,3]
[329511907,1718409174244,-608.23156353,0.00026027,3]
[329511908,1718409174255,-500.0,0.00026027,3]
[329511909,1718409174265,-600.48,0.00026027,3]
[329511910,1718409174276,-2000.0,0.00026027,3]
[329511911,1718409174297,-500.0,0.00026027,3]
[329511912,1718409174309,-500.0,0.00026027,3]
[329511913,1718409174320,-1018.08,0.00026027,3]
[329511914,1718409174331,-500.0,0.00026027,3]
[329511915,1718409174352,-500.0,0.00026027,3]
[329511916,1718409174369,-1175.7,0.00026027,3]
[329511917,1718409174385,-500.0,0.00026027,3]
[329511918,1718409174408,-1691.46,0.00026027,3]
[329511919,1718409174419,-24506.13,0.00026027,3]
[329511920,1718409174430,-777.76,0.00026027,3]
[329511921,1718409174442,-1854.16,0.00026027,3]
[329511922,1718409174468,-1055.98,0.00026027,3]
[329511923,1718409174490,-1198.09,0.00026027,3]
[329511924,1718409174510,-500.0,0.00026027,3]
[329511925,1718409174558,-516.41,0.00026027,3]
[329511926,1718409174576,-615.26,0.00026027,3]
[329511927,1718409174589,-6231.18,0.00026027,3]
[329511928,1718409174618,-1046.77,0.00026027,3]
[329511929,1718409174632,-3586.27,0.00026027,3]
[329511930,1718409174646,-561.85,0.00026027,3]
[329511931,1718409174670,-968.93,0.00026027,3]
[329511932,1718409174687,-1857.88,0.00026027,3]
[329511933,1718409174701,-2183.55,0.00026027,3]
[329511934,1718409174753,-844.51,0.00026027,3]
[329511935,1718409174780,-836.87,0.00026027,3]
[329511936,1718409174819,-500.0,0.00026027,3]
[329511937,1718409174848,-1991.89,0.00026027,3]
[329511938,1718409174860,-5690.91,0.00026027,3]
[329511939,1718409174877,-969.41,0.00026027,3]
[329511940,1718409174905,-500.0,0.00026027,3]
[329511941,1718409174920,-18610.37,0.00026027,3]
[329511942,1718409174946,-20167.93,0.00026027,3]
[329511943,1718409174981,-1674.49,0.00026027,3]
[329511944,1718409175030,-3030.53,0.00026027,3]
[329511945,1718409175043,-500.0,0.00026027,3]
[329511946,1718409175058,-966.56,0.00026027,3]
[329511947,1718409175074,-775.23,0.00026027,3]
[329511948,1718409175139,-575.07,0.00026027,3]
[329511949,1718409175172,-598.46,0.00026027,3]
[329511950,1718409175232,-1655.24,0.00026027,3]
[329511951,1718409175244,-2076.84,0.00026027,3]
[329511952,1718409175257,-682.08,0.00026027,3]
[329511953,1718409175281,-1822.84,0.00026027,3]
[329511954,1718409175294,-5529.61,0.00026027,3]
[329511955,1718409175310,-786.01,0.00026027,3]
[329511956,1718409175332,-3184.07,0.00026027,3]
[329511957,1718409175344,-574.58,0.00026027,3]
[329511958,1718409175361,-11746.88,0.00026027,3]
[329511959,1718409175392,-662.27,0.00026027,3]
[329511960,1718409175424,-6064.15,0.00026027,3]
[329511961,1718409175440,-1212.45,0.00026027,3]
[329511962,1718409175467,-658.84,0.00026027,3]
[329511963,1718409175518,-500.0,0.00026027,3]
[329511964,1718409175531,-1250.84,0.00026027,3]
[329511965,1718409175570,-1457.35,0.00026027,3]
[329511966,1718409175585,-2523.73,0.00026027,3]
[329511967,1718409175632,-521.47,0.00026027,3]
[329511968,1718409175653,-699.17,0.00026027,3]
[329511969,1718409175679,-500.0,0.00026027,3]
[329511970,1718409175701,-896.88,0.00026027,3]
[329511971,1718409175713,-1061.25,0.00026027,3]
[329511972,1718409175726,-500.0,0.00026027,3]
[329511973,1718409175741,-669.5,0.00026027,3]
[329511974,1718409175755,-532.32,0.00026027,3]
[329511975,1718409175765,-2252.2,0.00026027,3]
[329511976,1718409175782,-1329.78,0.00026027,3]
[329511977,1718409175792,-889.55,0.00026027,3]
[329511978,1718409175804,-726.83,0.00026027,3]
[329511979,1718409175826,-500.0,0.00026027,3]
[329511980,1718409175844,-1121.95,0.00026027,3]
[329511981,1718409175855,-500.0,0.00026027,3]
[329511982,1718409175867,-2002.63,0.00026027,3]
[329511983,1718409175908,-635.93,0.00026027,3]
[329511984,1718409175921,-500.0,0.00026027,3]
[329511985,1718409175944,-749.23,0.00026027,3]
[329511986,1718409175958,-1297.0,0.00026027,3]
[329511987,1718409175973,-1013.7,0.00026027,3]
[329511988,1718409175985,-1218.43,0.00026027,3]
[329511989,1718409176031,-814.13,0.00026027,3]
[329511990,1718409176060,-1069.53,0.00026027,3]
[329511991,1718409176071,-2089.69,0.00026027,3]
[329511992,1718409176084,-500.0,0.00026027,3]
[329511993,1718409176096,-728.21,0.00026027,3]
[329511994,1718409176109,-4506.65,0.00026027,3]
[329511995,1718409176122,-505.75,0.00026027,3]
[329511996,1718409176134,-500.0,0.00026027,3]
[329511997,1718409176146,-1722.19,0.00026027,3]
[329511998,1718409176156,-1029.14,0.00026027,3]
[329511999,1718409176168,-1126.29,0.00026027,3]
[329512000,1718409176186,-1013.4,0.00026027,3]
[329512001,1718409176200,-690.09,0.00026027,3]
[329512002,1718409176212,-191.27588686,0.00026027,3]
[329512003,1718409176225,-2735.56,0.00026027,3]
[329512004,1718409176251,-725.51,0.00026027,3]
[329512005,1718409176273,-2174.79,0.00026027,3]
[329512006,1718409176302,-500.0,0.00026027,3]
[329512007,1718409176317,-3237.71,0.00026027,3]
[329512008,1718409176328,-817.48,0.00026027,3]
[329512009,1718409176340,-2378.83,0.00026027,3]
[329512010,1718409176351,-692.48,0.00026027,3]
[329512011,1718409176503,-1135.87,0.00026027,3]
[329512012,1718409176515,-166.66666667,0.00026036,2]
[329512013,1718409176532,-346.68116762,0.00026041,2]
[329512014,1718409176542,-177.90534913,0.00026041,2]
[329512015,1718409176568,-230.41188732,0.00026047,2]
[329512016,1718409176588,-155.85640551,0.00026052,2]
[329512017,1718409176605,-177.90534913,0.00026067,2]
[329512018,1718409176631,-177.90534913,0.00026093,2]
[329512019,1718409176658,-2340.74889455,0.00026099,2]
[329512020,1718409176671,-590.85,0.000261,2]
[329512021,1718409176687,-452.71,0.000261,2]
[329512022,1718409176705,-12338.52293741,0.00026118,2]
[329512023,1718409176718,-166.66666666,0.00026143,2]
[329512024,1718409176731,-457.50732763,0.00026143,2]
[329512025,1718409176743,-2340.74889455,0.00026168,2]
[329512026,1718409176756,-177.90534913,0.00026173,2]
[329512027,1718409176769,-2340.74889455,0.0002618,2]
[329512028,1718409176794,-158.27876525,0.00026181,2]
[329512029,1718409176805,-155.85640551,0.00026182,2]
[329512030,1718409176829,-150.0,0.000262,4]
[329512031,1718409176861,-586.37063159,0.00026212,2]
[329512032,1718409176888,-586.37063159,0.00026235,2]
[329512033,1718409176902,-153.83063425,0.00026289,2]
[329512034,1718409176914,-500.0,0.00026301,3]
[329512035,1718409176955,-749.79,0.00026301,3]
[329512036,1718409176969,-500.0,0.00026301,3]
[329512037,1718409176988,-434.83382158,0.00026301,3]
[329512038,1718409177024,-600.48,0.00026301,3]
[329512039,1718409177036,-2000.0,0.00026301,3]
[329512040,1718409177055,-500.0,0.00026301,3]
[329512041,1718409177078,-500.0,0.00026301,3]
[329512042,1718409177090,-1018.08,0.00026301,3]
[329512043,1718409177104,-500.0,0.00026301,3]
[329512044,1718409177114,-500.0,0.00026301,3]
[329512045,1718409177137,-1175.7,0.00026301,3]
[329512046,1718409177163,-281.18158199,0.00026301,3]
[329512047,1718409177184,-1691.46,0.00026301,3]
[329512048,1718409177222,-24506.13,0.00026301,3]
[329512049,1718409177238,-777.76,0.00026301,3]
[329512050,1718409177248,-1854.16,0.00026301,3]
[329512051,1718409177260,-1055.98,0.00026301,3]
[329512052,1718409177273,-500.0,0.00026301,3]
[329512053,1718409177284,-1198.09,0.00026301,3]
[329512054,1718409177296,-516.41,0.00026301,3]
[329512055,1718409177320,-615.26,0.00026301,3]
[329512056,1718409177356,-6231.18,0.00026301,3]
[329512057,1718409177392,-1046.77,0.00026301,3]
[329512058,1718409177422,-3586.27,0.00026301,3]
[329512059,1718409177434,-561.85,0.00026301,3]
[329512060,1718409177446,-968.93,0.00026301,3]
[329512061,1718409177457,-1857.88,0.00026301,3]
[329512062,1718409177472,-2183.55,0.00026301,3]
[329512063,1718409177483,-844.51,0.00026301,3]
[329512064,1718409177495,-836.87,0.00026301,3]
[329512065,1718409177510,-500.0,0.00026301,3]
[329512066,1718409177528,-1991.89,0.00026301,3]
[329512067,1718409177540,-5690.91,0.00026301,3]
[329512068,1718409177554,-969.41,0.00026301,3]
[329512069,1718409177596,-500.0,0.00026301,3]
[329512070,1718409177618,-18610.37,0.00026301,3]
[329512071,1718409177632,-20167.93,0.00026301,3]
[329512072,1718409177642,-1674.49,0.00026301,3]
[329512073,1718409177654,-3030.53,0.00026301,3]
[329512074,1718409177665,-500.0,0.00026301,3]
[329512075,1718409177682,-966.56,0.00026301,3]
[329512076,1718409177701,-775.23,0.00026301,3]
[329512077,1718409177740,-575.07,0.00026301,3]
[329512078,1718409177750,-598.46,0.00026301,3]
[329512079,1718409177780,-2076.84,0.00026301,3]
[329512080,1718409177792,-682.08,0.00026301,3]
[329512081,1718409177828,-1822.84,0.00026301,3]
[329512082,1718409177854,-5529.61,0.00026301,3]
[329512083,1718409177873,-1655.24,0.00026301,3]
[329512084,1718409177883,-786.01,0.00026301,3]
[329512085,1718409177930,-3184.07,0.00026301,3]
[329512086,1718409177952,-574.58,0.00026301,3]
[329512087,1718409177966,-11746.88,0.00026301,3]
[329512088,1718409177977,-662.27,0.00026301,3]
[329512089,1718409177999,-1212.45,0.00026301,3]
[329512090,1718409178012,-6064.15,0.00026301,3]
[329512091,1718409178031,-658.84,0.00026301,3]
[329512092,1718409178045,-500.0,0.00026301,3]
[329512093,1718409178074,-1250.84,0.00026301,3]
[329512094,1718409178086,-1457.35,0.00026301,3]
[329512095,1718409178099,-2523.73,0.00026301,3]
[329512096,1718409178111,-521.47,0.00026301,3]
[329512097,1718409178129,-699.17,0.00026301,3]
[329512098,1718409178141,-500.0,0.00026301,3]
[329512099,1718409178151,-896.88,0.00026301,3]
[329512100,1718409178169,-1061.25,0.00026301,3]
[329512101,1718409178184,-500.0,0.00026301,3]
[329512102,1718409178196,-669.5,0.00026301,3]
[329512103,1718409178207,-532.32,0.00026301,3]
[329512104,1718409178217,-2252.2,0.00026301,3]
[329512105,1718409178228,-1329.78,0.00026301,3]
[329512106,1718409178272,-889.55,0.00026301,3]
[329512107,1718409178286,-500.0,0.00026301,3]
[329512108,1718409178313,-726.83,0.00026301,3]
[329512109,1718409178324,-1121.95,0.00026301,3]
[329512110,1718409178365,-500.0,0.00026301,3]
[329512111,1718409178377,-635.93,0.00026301,3]
[329512112,1718409178391,-2002.63,0.00026301,3]
[329512113,1718409178434,-500.0,0.00026301,3]
[329512114,1718409178445,-749.23,0.00026301,3]
[329512115,1718409178483,-1013.7,0.00026301,3]
[329512116,1718409178495,-1297.0,0.00026301,3]
[329512117,1718409178508,-1218.43,0.00026301,3]
[329512118,1718409178566,-814.13,0.00026301,3]
[329512119,1718409178585,-1069.53,0.00026301,3]
[329512120,1718409178596,-2089.69,0.00026301,3]
[329512121,1718409178609,-500.0,0.00026301,3]
[329512122,1718409178656,-728.21,0.00026301,3]
[329512123,1718409178679,-4506.65,0.00026301,3]
[329512124,1718409178706,-505.75,0.00026301,3]
[329512125,1718409178723,-500.0,0.00026301,3]
[329512126,1718409178736,-1722.19,0.00026301,3]
[329512127,1718409178746,-1029.14,0.00026301,3]
[329512128,1718409178766,-1126.29,0.00026301,3]
[329512129,1718409178780,-1013.4,0.00026301,3]
[329512130,1718409178792,-690.09,0.00026301,3]
[329512131,1718409178812,-2735.56,0.00026301,3]
[329512132,1718409178825,-2174.79,0.00026301,3]
[329512133,1718409178836,-725.51,0.00026301,3]
[329512134,1718409178854,-500.0,0.00026301,3]
[329512135,1718409178865,-3237.71,0.00026301,3]
[329512136,1718409178889,-817.48,0.00026301,3]
[329512137,1718409178936,-2378.83,0.00026301,3]
[329512138,1718409178951,-692.48,0.00026301,3]
[329512139,1718409178977,-1135.87,0.00026301,3]
[329512140,1718409178991,-2000.0,0.00026301,3]
[329512141,1718409179003,-153.48233137,0.0002634,2]
[329512142,1718409179028,-546.15,0.00026348,2]
[329512143,1718409179052,-17526.77639752,0.00026411,2]
[329512144,1718409179071,-49677.0844987,0.00026411,2]
[329512145,1718409179083,-151.0,0.0002642,2]
[329512146,1718409179096,-160.92444028,0.00026451,2]
[329512147,1718409179124,-4928.91154559,0.00026451,2]
[329512148,1718409179152,-150.0,0.00026457,2]
[329512149,1718409179165,-150.0,0.00026463,2]
[329512150,1718409179188,-151.0,0.00026473,4]
[329512151,1718409179224,-586.37063159,0.00026489,2]
[329512152,1718409179257,-300.0,0.00026492,2]
[329512153,1718409179296,-150.0,0.00026492,2]
[329512154,1718409179309,-150.0,0.00026492,2]
[329512155,1718409179335,-453.84,0.00026498,2]
[329512156,1718409179350,-876.0,0.000265,14]
[329512157,1718409179377,-997.96,0.0002651,2]
[329512158,1718409179408,-152.06773046,0.00026533,2]
[329512159,1718409179431,-154.60031802,0.00026551,2]
[329512160,1718409179443,-154.43145431,0.0002657,2]
[329512161,1718409179455,-500.0,0.00026575,3]
[329512162,1718409179489,-749.79,0.00026575,3]
[329512163,1718409179522,-500.0,0.00026575,3]
[329512164,1718409179539,-600.48,0.00026575,3]
[329512165,1718409179561,-2000.0,0.00026575,3]
[329512166,1718409179572,-500.0,0.00026575,3]
[329512167,1718409179589,-500.0,0.00026575,3]
[329512168,1718409179613,-1018.08,0.00026575,3]
[329512169,1718409179636,-500.0,0.00026575,3]
[329512170,1718409179662,-500.0,0.00026575,3]
[329512171,1718409179696,-1175.7,0.00026575,3]
[329512172,1718409179713,-1691.46,0.00026575,3]
[329512173,1718409179725,-24506.13,0.00026575,3]
[329512174,1718409179736,-777.76,0.00026575,3]
[329512175,1718409179749,-1854.16,0.00026575,3]
[329512176,1718409179762,-1055.98,0.00026575,3]
[329512177,1718409179775,-500.0,0.00026575,3]
[329512178,1718409179829,-1198.09,0.00026575,3]
[329512179,1718409179840,-516.41,0.00026575,3]
[329512180,1718409179873,-615.26,0.00026575,3]
[329512181,1718409179903,-6231.18,0.00026575,3]
[329512182,1718409179920,-1046.77,0.00026575,3]
[329512183,1718409179934,-3586.27,0.00026575,3]
[329512184,1718409179950,-561.85,0.00026575,3]
[329512185,1718409179977,-457.50732763,0.00026575,2]
[329512186,1718409180044,-968.93,0.00026575,3]
[329512187,1718409180088,-1857.88,0.00026575,3]
[329512188,1718409180117,-2183.55,0.00026575,3]
[329512189,1718409180128,-844.51,0.00026575,3]
[329512190,1718409180153,-836.87,0.00026575,3]
[329512191,1718409180205,-500.0,0.00026575,3]
[329512192,1718409180216,-1991.89,0.00026575,3]
[329512193,1718409180227,-5690.91,0.00026575,3]
[329512194,1718409180236,-969.41,0.00026575,3]
[329512195,1718409180282,-18610.37,0.00026575,3]
[329512196,1718409180292,-20167.93,0.00026575,3]
[329512197,1718409180302,-1674.49,0.00026575,3]
[329512198,1718409180351,-3030.53,0.00026575,3]
[329512199,1718409180363,-500.0,0.00026575,3]
[329512200,1718409180413,-966.56,0.00026575,3]
[329512201,1718409180462,-775.23,0.00026575,3]
[329512202,1718409180484,-575.07,0.00026575,3]